[Event "Titled Tuesday Blitz June 27 Early 2023"]
[White "Leon Oquendo, Jorge"]
[Black "Makarian, Rudik"]
[WhiteFideId "3514803"]
[BlackFideId "44105681"]
[WhiteElo "2652"]
[BlackElo "2973"]
[Result "1-0"]
[Round "2"]
[TimeControl "180+2"]
[Date "2023.06.27"]
[WhiteClock "0:00:08"]
[BlackClock "0:00:06"]
[Board "18"]

1. e4 {[%clk 0:03:00]}  c5 {[%clk 0:02:56]} 2. Nf3 {[%clk 0:03:00]}  Nc6 {[%clk 0:02:57]} 3. Bb5 {[%clk 0:02:58]}  e6 {[%clk 0:02:57]} 4. Bxc6 {[%clk 0:02:57]}  bxc6 {[%clk 0:02:58]} 5. Qe2 {[%clk 0:02:56]}  Ne7 {[%clk 0:02:52]} 6. h4 {[%clk 0:02:51]}  d6 {[%clk 0:02:44]} 7. h5 {[%clk 0:02:49]}  e5 {[%clk 0:02:43]} 8. h6 {[%clk 0:02:46]}  g6 {[%clk 0:02:41]} 9. d3 {[%clk 0:02:45]}  f6 {[%clk 0:02:38]} 10. c3 {[%clk 0:02:38]}  g5 {[%clk 0:02:25]} 11. Be3 {[%clk 0:02:34]}  Ng6 {[%clk 0:02:25]} 12. d4 {[%clk 0:02:30]}  Rb8 {[%clk 0:02:08]} 13. dxc5 {[%clk 0:02:25]}  d5 {[%clk 0:02:09]} 14. exd5 {[%clk 0:02:14]}  Qxd5 {[%clk 0:01:58]} 15. O-O {[%clk 0:02:02]}  Bg4 {[%clk 0:01:53]} 16. Rd1 {[%clk 0:01:46]}  Bxf3 {[%clk 0:01:52]} 17. gxf3 {[%clk 0:01:39]}  Qe6 {[%clk 0:01:53]} 18. b4 {[%clk 0:01:33]}  Rg8 {[%clk 0:01:43]} 19. Nd2 {[%clk 0:01:29]}  Nf4 {[%clk 0:01:41]} 20. Bxf4 {[%clk 0:01:20]}  gxf4+ {[%clk 0:01:42]} 21. Kf1 {[%clk 0:01:20]}  Kf7 {[%clk 0:01:27]} 22. Qc4 {[%clk 0:01:18]}  Be7 {[%clk 0:01:13]} 23. Ke2 {[%clk 0:01:14]}  Rg6 {[%clk 0:01:11]} 24. Qxe6+ {[%clk 0:01:11]}  Kxe6 {[%clk 0:01:12]} 25. Nc4 {[%clk 0:01:09]}  f5 {[%clk 0:00:57]} 26. Rg1 {[%clk 0:00:48]}  Rbg8 {[%clk 0:00:56]} 27. Rxg6+ {[%clk 0:00:47]}  Rxg6 {[%clk 0:00:57]} 28. Na5 {[%clk 0:00:47]}  Kd7 {[%clk 0:00:54]} 29. Rd1+ {[%clk 0:00:46]}  Kc7 {[%clk 0:00:54]} 30. Nc4 {[%clk 0:00:44]}  Re6 {[%clk 0:00:54]} 31. Rg1 {[%clk 0:00:42]}  Bf8 {[%clk 0:00:52]} 32. Rg8 {[%clk 0:00:37]}  Bxh6 {[%clk 0:00:51]} 33. Nd6 {[%clk 0:00:37]}  e4 {[%clk 0:00:44]} 34. Ra8 {[%clk 0:00:26]}  e3 {[%clk 0:00:38]} 35. Rxa7+ {[%clk 0:00:25]}  Kb8 {[%clk 0:00:39]} 36. Rb7+ {[%clk 0:00:23]}  Ka8 {[%clk 0:00:39]} 37. Rxh7 {[%clk 0:00:23]}  Bg5 {[%clk 0:00:33]} 38. a4 {[%clk 0:00:16]}  Bf6 {[%clk 0:00:24]} 39. b5 {[%clk 0:00:15]}  cxb5 {[%clk 0:00:22]} 40. axb5 {[%clk 0:00:15]}  Bxc3 {[%clk 0:00:22]} 41. b6 {[%clk 0:00:15]}  Bd4 {[%clk 0:00:17]} 42. fxe3 {[%clk 0:00:09]}  Rxe3+ {[%clk 0:00:17]} 43. Kd2 {[%clk 0:00:09]}  Rb3 {[%clk 0:00:15]} 44. Rc7 {[%clk 0:00:08]}  Bxc5 {[%clk 0:00:06]} 45. Rc8# {[%clk 0:00:08]} 1-0


[Site "https://www.chess.com"]

[Event "Titled Tuesday Blitz June 27 Early 2023"]
[White "Gurel, Ediz"]
[Black "Florescu, Codrut-Constantin"]
[WhiteFideId "44507356"]
[BlackFideId "1202200"]
[WhiteElo "2966"]
[BlackElo "2651"]
[Result "1-0"]
[Round "2"]
[TimeControl "180+2"]
[Date "2023.06.27"]
[WhiteClock "0:00:11"]
[BlackClock "0:00:04"]
[Board "19"]

1. e4 {[%clk 0:03:00]}  c5 {[%clk 0:02:59]} 2. Nf3 {[%clk 0:03:00]}  e6 {[%clk 0:03:00]} 3. d4 {[%clk 0:03:00]}  cxd4 {[%clk 0:03:01]} 4. Nxd4 {[%clk 0:03:00]}  a6 {[%clk 0:03:01]} 5. Nc3 {[%clk 0:02:59]}  d6 {[%clk 0:03:00]} 6. g3 {[%clk 0:02:58]}  Bd7 {[%clk 0:02:58]} 7. Bg2 {[%clk 0:02:58]}  Nc6 {[%clk 0:02:58]} 8. O-O {[%clk 0:02:59]}  Nf6 {[%clk 0:02:58]} 9. Be3 {[%clk 0:02:58]}  Be7 {[%clk 0:02:58]} 10. f4 {[%clk 0:02:58]}  O-O {[%clk 0:02:57]} 11. Kh1 {[%clk 0:02:58]}  Qc7 {[%clk 0:02:56]} 12. Nb3 {[%clk 0:02:49]}  b5 {[%clk 0:02:42]} 13. a3 {[%clk 0:02:48]}  Rad8 {[%clk 0:02:32]} 14. g4 {[%clk 0:02:47]}  Bc8 {[%clk 0:02:32]} 15. g5 {[%clk 0:02:46]}  Nd7 {[%clk 0:02:32]} 16. Qh5 {[%clk 0:02:43]}  g6 {[%clk 0:02:30]} 17. Qh6 {[%clk 0:02:43]}  Rfe8 {[%clk 0:02:19]} 18. Rf3 {[%clk 0:02:43]}  Bf8 {[%clk 0:02:18]} 19. Qh4 {[%clk 0:02:44]}  Nc5 {[%clk 0:02:14]} 20. Rh3 {[%clk 0:02:43]}  h5 {[%clk 0:02:03]} 21. gxh6 {[%clk 0:02:42]}  Kh7 {[%clk 0:01:57]} 22. Nd2 {[%clk 0:02:42]}  d5 {[%clk 0:01:52]} 23. Nf3 {[%clk 0:02:32]}  Be7 {[%clk 0:01:45]} 24. Ng5+ {[%clk 0:02:11]}  Bxg5 {[%clk 0:01:45]} 25. Qxg5 {[%clk 0:02:12]}  f6 {[%clk 0:01:29]} 26. Qxf6 {[%clk 0:02:06]}  d4 {[%clk 0:01:26]} 27. e5 {[%clk 0:01:49]}  Rf8 {[%clk 0:01:15]} 28. Qg7+ {[%clk 0:01:22]}  Qxg7 {[%clk 0:01:13]} 29. hxg7+ {[%clk 0:01:23]}  Kxg7 {[%clk 0:01:13]} 30. Bxc6 {[%clk 0:01:20]}  dxe3 {[%clk 0:01:12]} 31. Rxe3 {[%clk 0:01:21]}  Rxf4 {[%clk 0:01:11]} 32. b4 {[%clk 0:01:21]}  Na4 {[%clk 0:00:50]} 33. Nxa4 {[%clk 0:01:19]}  bxa4 {[%clk 0:00:50]} 34. Rae1 {[%clk 0:01:09]}  Bd7 {[%clk 0:00:41]} 35. Bxd7 {[%clk 0:00:48]}  Rxd7 {[%clk 0:00:42]} 36. Kg2 {[%clk 0:00:46]}  Rd2+ {[%clk 0:00:37]} 37. R1e2 {[%clk 0:00:46]}  Rxe2+ {[%clk 0:00:36]} 38. Rxe2 {[%clk 0:00:47]}  Rc4 {[%clk 0:00:36]} 39. Rd2 {[%clk 0:00:41]}  Rc3 {[%clk 0:00:33]} 40. Rd7+ {[%clk 0:00:38]}  Kh6 {[%clk 0:00:32]} 41. Rd6 {[%clk 0:00:36]}  Rxa3 {[%clk 0:00:32]} 42. Rxe6 {[%clk 0:00:21]}  Rc3 {[%clk 0:00:32]} 43. Rxa6 {[%clk 0:00:22]}  Rxc2+ {[%clk 0:00:32]} 44. Kg3 {[%clk 0:00:21]}  Rc3+ {[%clk 0:00:30]} 45. Kf2 {[%clk 0:00:21]}  a3 {[%clk 0:00:31]} 46. b5 {[%clk 0:00:20]}  Rb3 {[%clk 0:00:31]} 47. b6 {[%clk 0:00:19]}  Rb2+ {[%clk 0:00:31]} 48. Ke3 {[%clk 0:00:17]}  a2 {[%clk 0:00:32]} 49. b7 {[%clk 0:00:16]}  Kg5 {[%clk 0:00:23]} 50. Rxa2 {[%clk 0:00:16]}  Rxb7 {[%clk 0:00:22]} 51. Ke4 {[%clk 0:00:16]}  Rb1 {[%clk 0:00:15]} 52. Rg2+ {[%clk 0:00:13]}  Kh5 {[%clk 0:00:11]} 53. e6 {[%clk 0:00:13]}  Re1+ {[%clk 0:00:11]} 54. Kd5 {[%clk 0:00:14]}  Rd1+ {[%clk 0:00:11]} 55. Ke5 {[%clk 0:00:14]}  Re1+ {[%clk 0:00:10]} 56. Kf6 {[%clk 0:00:11]}  Rf1+ {[%clk 0:00:10]} 57. Kg7 {[%clk 0:00:11]}  Re1 {[%clk 0:00:10]} 58. Rxg6 {[%clk 0:00:11]}  Kh4 {[%clk 0:00:04]} 59. Kf7 {[%clk 0:00:11]} 1-0


[Site "https://www.chess.com"]

[Event "Titled Tuesday Blitz June 27 Early 2023"]
[White "Daneshvar, Bardiya"]
[Black "Eugene, Floryan"]
[WhiteFideId "12576468"]
[BlackFideId "20694784"]
[WhiteElo "2957"]
[BlackElo "2642"]
[Result "0-1"]
[Round "2"]
[TimeControl "180+2"]
[Date "2023.06.27"]
[WhiteClock "0:00:13"]
[BlackClock "0:00:10"]
[Board "22"]

1. b3 {[%clk 0:03:00]}  Nc6 {[%clk 0:02:55]} 2. Bb2 {[%clk 0:03:00]}  e5 {[%clk 0:02:55]} 3. c4 {[%clk 0:02:59]}  d6 {[%clk 0:02:53]} 4. Nc3 {[%clk 0:02:57]}  g6 {[%clk 0:02:52]} 5. g3 {[%clk 0:02:56]}  Bg7 {[%clk 0:02:45]} 6. Bg2 {[%clk 0:02:57]}  Nge7 {[%clk 0:02:39]} 7. e3 {[%clk 0:02:56]}  O-O {[%clk 0:02:39]} 8. Nge2 {[%clk 0:02:57]}  f5 {[%clk 0:02:37]} 9. d3 {[%clk 0:02:57]}  Be6 {[%clk 0:02:30]} 10. Nd5 {[%clk 0:02:57]}  Bf7 {[%clk 0:02:26]} 11. O-O {[%clk 0:02:43]}  Nxd5 {[%clk 0:02:24]} 12. cxd5 {[%clk 0:02:37]}  Ne7 {[%clk 0:02:24]} 13. e4 {[%clk 0:02:37]}  Qd7 {[%clk 0:02:21]} 14. f4 {[%clk 0:02:33]}  c6 {[%clk 0:02:02]} 15. fxe5 {[%clk 0:02:31]}  dxe5 {[%clk 0:02:00]} 16. dxc6 {[%clk 0:02:27]}  Nxc6 {[%clk 0:01:59]} 17. Rc1 {[%clk 0:02:26]}  Rad8 {[%clk 0:01:55]} 18. exf5 {[%clk 0:02:23]}  gxf5 {[%clk 0:01:53]} 19. d4 {[%clk 0:02:23]}  Nxd4 {[%clk 0:01:27]} 20. Bxd4 {[%clk 0:02:15]}  exd4 {[%clk 0:01:28]} 21. Qd3 {[%clk 0:02:15]}  Be6 {[%clk 0:01:24]} 22. Nf4 {[%clk 0:02:10]}  Rde8 {[%clk 0:01:14]} 23. Rc5 {[%clk 0:02:02]}  Kh8 {[%clk 0:01:11]} 24. Nxe6 {[%clk 0:01:54]}  Qxe6 {[%clk 0:01:10]} 25. Bxb7 {[%clk 0:01:50]}  f4 {[%clk 0:01:04]} 26. gxf4 {[%clk 0:01:36]}  Qh6 {[%clk 0:00:42]} 27. Rc6 {[%clk 0:01:09]}  Bf6 {[%clk 0:00:28]} 28. Kh1 {[%clk 0:01:07]}  Qg7 {[%clk 0:00:20]} 29. Ba6 {[%clk 0:00:57]}  Re3 {[%clk 0:00:19]} 30. Qc4 {[%clk 0:00:45]}  Rg8 {[%clk 0:00:17]} 31. Qd5 {[%clk 0:00:33]}  Rh3 {[%clk 0:00:17]} 32. Qxg8+ {[%clk 0:00:26]}  Qxg8 {[%clk 0:00:17]} 33. Rxf6 {[%clk 0:00:23]}  Qd5+ {[%clk 0:00:14]} 34. Kg1 {[%clk 0:00:23]}  Rh4 {[%clk 0:00:12]} 35. Be2 {[%clk 0:00:13]}  d3 {[%clk 0:00:10]} 0-1


[Site "https://www.chess.com"]

[Event "Titled Tuesday Blitz June 27 Early 2023"]
[White "Lenderman, Aleksandr"]
[Black "Soham Kamotra"]
[WhiteFideId "2021285"]
[BlackFideId "46647490"]
[WhiteElo "2951"]
[BlackElo "2631"]
[Result "1/2-1/2"]
[Round "2"]
[TimeControl "180+2"]
[Date "2023.06.27"]
[WhiteClock "0:00:50"]
[BlackClock "0:00:21"]
[Board "24"]

1. Nf3 {[%clk 0:03:00]}  Nf6 {[%clk 0:02:54]} 2. b3 {[%clk 0:03:01]}  d5 {[%clk 0:02:51]} 3. Bb2 {[%clk 0:03:01]}  Bf5 {[%clk 0:02:52]} 4. Nh4 {[%clk 0:02:59]}  Bg4 {[%clk 0:02:48]} 5. h3 {[%clk 0:02:58]}  Bh5 {[%clk 0:02:46]} 6. g4 {[%clk 0:02:58]}  Bg6 {[%clk 0:02:46]} 7. d3 {[%clk 0:02:56]}  Nbd7 {[%clk 0:02:45]} 8. Bg2 {[%clk 0:02:52]}  e5 {[%clk 0:02:44]} 9. Nxg6 {[%clk 0:02:52]}  hxg6 {[%clk 0:02:42]} 10. g5 {[%clk 0:02:52]}  Nh5 {[%clk 0:02:41]} 11. Bxd5 {[%clk 0:02:52]}  c6 {[%clk 0:02:41]} 12. Bf3 {[%clk 0:02:52]}  Qxg5 {[%clk 0:02:40]} 13. Nd2 {[%clk 0:02:52]}  Nf4 {[%clk 0:02:38]} 14. Ne4 {[%clk 0:02:52]}  Qe7 {[%clk 0:02:33]} 15. e3 {[%clk 0:02:48]}  Ne6 {[%clk 0:02:19]} 16. Qe2 {[%clk 0:02:42]}  O-O-O {[%clk 0:02:16]} 17. O-O-O {[%clk 0:02:42]}  f5 {[%clk 0:02:15]} 18. Nd2 {[%clk 0:02:42]}  Ng5 {[%clk 0:01:54]} 19. Bg2 {[%clk 0:02:42]}  Nf7 {[%clk 0:01:46]} 20. Rdg1 {[%clk 0:02:39]}  Qe6 {[%clk 0:01:44]} 21. e4 {[%clk 0:02:30]}  Be7 {[%clk 0:01:38]} 22. Kb1 {[%clk 0:02:30]}  Rh7 {[%clk 0:01:30]} 23. exf5 {[%clk 0:02:28]}  gxf5 {[%clk 0:01:30]} 24. f4 {[%clk 0:02:28]}  Bf6 {[%clk 0:01:29]} 25. Nc4 {[%clk 0:02:26]}  Re8 {[%clk 0:01:27]} 26. Qf2 {[%clk 0:02:23]}  Nb6 {[%clk 0:01:19]} 27. Nxb6+ {[%clk 0:02:21]}  axb6 {[%clk 0:01:20]} 28. fxe5 {[%clk 0:02:14]}  Bxe5 {[%clk 0:01:20]} 29. Qxb6 {[%clk 0:02:09]}  Bxb2 {[%clk 0:01:18]} 30. Kxb2 {[%clk 0:02:10]}  Qf6+ {[%clk 0:01:19]} 31. Kb1 {[%clk 0:02:08]}  Ng5 {[%clk 0:01:11]} 32. h4 {[%clk 0:02:02]}  Ne6 {[%clk 0:01:10]} 33. Re1 {[%clk 0:01:57]}  Rhh8 {[%clk 0:01:08]} 34. Qa5 {[%clk 0:01:46]}  Nc7 {[%clk 0:01:06]} 35. Rxe8+ {[%clk 0:01:40]}  Rxe8 {[%clk 0:01:07]} 36. Bh3 {[%clk 0:01:40]}  g6 {[%clk 0:01:04]} 37. h5 {[%clk 0:01:40]}  Nd5 {[%clk 0:01:04]} 38. Qa8+ {[%clk 0:01:36]}  Kd7 {[%clk 0:01:02]} 39. Qxb7+ {[%clk 0:01:36]}  Kd6 {[%clk 0:01:01]} 40. Bg2 {[%clk 0:00:55]}  Nc3+ {[%clk 0:00:54]} 41. Kb2 {[%clk 0:00:55]}  Nb5+ {[%clk 0:00:46]} 42. Kb1 {[%clk 0:00:50]}  Nc3+ {[%clk 0:00:20]} 43. Kb2 {[%clk 0:00:50]}  Nb5+ {[%clk 0:00:20]} 44. Kb1 {[%clk 0:00:50]}  Nc3+ {[%clk 0:00:21]} 1/2-1/2


[Site "https://www.chess.com"]

[Event "Titled Tuesday Blitz June 27 Early 2023"]
[White "Zochowski, Kacper"]
[Black "Vokhidov, Shamsiddin"]
[WhiteFideId "1125494"]
[BlackFideId "14204223"]
[WhiteElo "2629"]
[BlackElo "2947"]
[Result "1-0"]
[Round "2"]
[TimeControl "180+2"]
[Date "2023.06.27"]
[WhiteClock "0:01:42"]
[BlackClock "0:01:00"]
[Board "26"]

1. Nf3 {[%clk 0:02:58]}  Nf6 {[%clk 0:02:58]} 2. c4 {[%clk 0:02:58]}  e6 {[%clk 0:02:58]} 3. g3 {[%clk 0:02:58]}  d5 {[%clk 0:02:58]} 4. Bg2 {[%clk 0:02:59]}  dxc4 {[%clk 0:02:56]} 5. Qa4+ {[%clk 0:02:59]}  Nbd7 {[%clk 0:02:55]} 6. Qxc4 {[%clk 0:02:59]}  a6 {[%clk 0:02:54]} 7. Qb3 {[%clk 0:02:59]}  c5 {[%clk 0:02:51]} 8. a4 {[%clk 0:02:59]}  Bd6 {[%clk 0:02:46]} 9. d3 {[%clk 0:02:59]}  O-O {[%clk 0:02:46]} 10. a5 {[%clk 0:02:59]}  Rb8 {[%clk 0:02:41]} 11. O-O {[%clk 0:02:58]}  b5 {[%clk 0:02:41]} 12. axb6 {[%clk 0:02:59]}  Nxb6 {[%clk 0:02:41]} 13. Na3 {[%clk 0:02:59]}  Bb7 {[%clk 0:02:40]} 14. Nc4 {[%clk 0:02:51]}  Bd5 {[%clk 0:02:39]} 15. Qc2 {[%clk 0:02:50]}  Nxc4 {[%clk 0:02:37]} 16. dxc4 {[%clk 0:02:51]}  Be4 {[%clk 0:02:38]} 17. Qc3 {[%clk 0:02:51]}  Qb6 {[%clk 0:02:32]} 18. Bg5 {[%clk 0:02:43]}  Be7 {[%clk 0:02:28]} 19. Ra2 {[%clk 0:02:33]}  h6 {[%clk 0:02:26]} 20. Bf4 {[%clk 0:02:31]}  Rb7 {[%clk 0:02:25]} 21. Rfa1 {[%clk 0:02:30]}  Ra8 {[%clk 0:02:23]} 22. Ne5 {[%clk 0:02:15]}  Bxg2 {[%clk 0:02:21]} 23. Kxg2 {[%clk 0:02:16]}  Nd7 {[%clk 0:02:15]} 24. Nxd7 {[%clk 0:02:15]}  Rxd7 {[%clk 0:02:16]} 25. Be5 {[%clk 0:02:09]}  f6 {[%clk 0:02:09]} 26. Bf4 {[%clk 0:02:10]}  Rb7 {[%clk 0:01:57]} 27. Qf3 {[%clk 0:02:04]}  Bf8 {[%clk 0:01:45]} 28. Bd2 {[%clk 0:01:59]}  Rba7 {[%clk 0:01:43]} 29. Bc3 {[%clk 0:01:59]}  Rd8 {[%clk 0:01:41]} 30. Ba5 {[%clk 0:01:58]}  Qb8 {[%clk 0:01:37]} 31. Bxd8 {[%clk 0:01:57]}  Qxd8 {[%clk 0:01:38]} 32. Rxa6 {[%clk 0:01:58]}  Re7 {[%clk 0:01:26]} 33. Ra8 {[%clk 0:01:57]}  Qd7 {[%clk 0:01:24]} 34. Rb8 {[%clk 0:01:54]}  Rf7 {[%clk 0:01:19]} 35. Raa8 {[%clk 0:01:54]}  g6 {[%clk 0:01:16]} 36. Rd8 {[%clk 0:01:43]}  Qc7 {[%clk 0:01:14]} 37. Rac8 {[%clk 0:01:43]}  Qe7 {[%clk 0:01:12]} 38. Qa8 {[%clk 0:01:43]}  Kg7 {[%clk 0:01:11]} 39. Re8 {[%clk 0:01:42]}  Qd6 {[%clk 0:01:00]} 40. Rcd8 {[%clk 0:01:42]} 1-0


[Site "https://www.chess.com"]

[Event "Titled Tuesday Blitz June 27 Early 2023"]
[White "Antipov, Mikhail Al."]
[Black "Ahmad, Khagan"]
[WhiteFideId "4107012"]
[BlackFideId "13431552"]
[WhiteElo "2916"]
[BlackElo "2626"]
[Result "1-0"]
[Round "2"]
[TimeControl "180+2"]
[Date "2023.06.27"]
[WhiteClock "0:00:20"]
[BlackClock "0:00:05"]
[Board "30"]

1. e4 {[%clk 0:03:00]}  c5 {[%clk 0:02:59]} 2. Nf3 {[%clk 0:03:01]}  d6 {[%clk 0:02:58]} 3. d4 {[%clk 0:03:01]}  cxd4 {[%clk 0:02:59]} 4. Nxd4 {[%clk 0:03:02]}  Nf6 {[%clk 0:02:58]} 5. Nc3 {[%clk 0:03:02]}  a6 {[%clk 0:02:59]} 6. Rg1 {[%clk 0:03:03]}  e5 {[%clk 0:02:45]} 7. Nb3 {[%clk 0:02:59]}  h5 {[%clk 0:02:38]} 8. Bg5 {[%clk 0:02:50]}  Be6 {[%clk 0:02:31]} 9. Be2 {[%clk 0:02:46]}  Be7 {[%clk 0:02:30]} 10. Qd2 {[%clk 0:02:46]}  Nbd7 {[%clk 0:02:31]} 11. O-O-O {[%clk 0:02:44]}  b5 {[%clk 0:02:26]} 12. h4 {[%clk 0:02:31]}  Rc8 {[%clk 0:02:26]} 13. f3 {[%clk 0:02:31]}  O-O {[%clk 0:02:22]} 14. Kb1 {[%clk 0:02:28]}  Qc7 {[%clk 0:02:03]} 15. g4 {[%clk 0:02:25]}  hxg4 {[%clk 0:02:02]} 16. h5 {[%clk 0:02:24]}  b4 {[%clk 0:01:55]} 17. Nd5 {[%clk 0:02:20]}  Nxd5 {[%clk 0:01:32]} 18. exd5 {[%clk 0:02:21]}  Bxg5 {[%clk 0:01:32]} 19. Qxg5 {[%clk 0:02:22]}  Qxc2+ {[%clk 0:01:32]} 20. Ka1 {[%clk 0:02:22]}  f6 {[%clk 0:01:13]} 21. Qe3 {[%clk 0:02:08]}  Bf7 {[%clk 0:01:01]} 22. Bd3 {[%clk 0:02:05]}  Qh2 {[%clk 0:00:55]} 23. Rxg4 {[%clk 0:01:37]}  Bxh5 {[%clk 0:00:51]} 24. Rxb4 {[%clk 0:01:29]}  Nc5 {[%clk 0:00:40]} 25. Bf5 {[%clk 0:01:27]}  Nxb3+ {[%clk 0:00:36]} 26. axb3 {[%clk 0:01:26]}  Rc5 {[%clk 0:00:34]} 27. Rb7 {[%clk 0:01:17]}  Qf4 {[%clk 0:00:25]} 28. Qxf4 {[%clk 0:01:16]}  exf4 {[%clk 0:00:26]} 29. Rh1 {[%clk 0:01:05]}  g6 {[%clk 0:00:11]} 30. b4 {[%clk 0:01:04]}  Rc4 {[%clk 0:00:08]} 31. Rg1 {[%clk 0:01:04]}  Re8 {[%clk 0:00:04]} 32. Bxg6 {[%clk 0:01:02]}  Bxg6 {[%clk 0:00:05]} 33. Rxg6+ {[%clk 0:01:02]}  Kh8 {[%clk 0:00:06]} 34. Rxf6 {[%clk 0:00:57]}  Rd4 {[%clk 0:00:07]} 35. Rxd6 {[%clk 0:00:52]}  Rd3 {[%clk 0:00:07]} 36. Rh6+ {[%clk 0:00:45]}  Kg8 {[%clk 0:00:08]} 37. Rg6+ {[%clk 0:00:41]}  Kh8 {[%clk 0:00:08]} 38. d6 {[%clk 0:00:40]}  Rxf3 {[%clk 0:00:08]} 39. Rf7 {[%clk 0:00:39]}  Rd8 {[%clk 0:00:04]} 40. d7 {[%clk 0:00:34]}  Rd3 {[%clk 0:00:05]} 41. Rxf4 {[%clk 0:00:34]}  R3xd7 {[%clk 0:00:05]} 42. Rxa6 {[%clk 0:00:29]}  Rb8 {[%clk 0:00:01]} 43. Ka2 {[%clk 0:00:28]}  Rdb7 {[%clk 0:00:02]} 44. Kb3 {[%clk 0:00:28]}  Kg8 {[%clk 0:00:02]} 45. Rg6+ {[%clk 0:00:27]}  Kh7 {[%clk 0:00:03]} 46. Rg1 {[%clk 0:00:27]}  Rb6 {[%clk 0:00:02]} 47. Rh4+ {[%clk 0:00:22]}  Rh6 {[%clk 0:00:03]} 48. Rxh6+ {[%clk 0:00:20]}  Kxh6 {[%clk 0:00:03]} 49. Kc4 {[%clk 0:00:21]}  Rc8+ {[%clk 0:00:04]} 50. Kd5 {[%clk 0:00:21]}  Rb8 {[%clk 0:00:05]} 51. Kc5 {[%clk 0:00:21]}  Rc8+ {[%clk 0:00:05]} 52. Kd6 {[%clk 0:00:21]}  Rb8 {[%clk 0:00:06]} 53. Rg4 {[%clk 0:00:22]}  Kh5 {[%clk 0:00:06]} 54. Kc7 {[%clk 0:00:21]}  Ra8 {[%clk 0:00:04]} 55. Rc4 {[%clk 0:00:21]}  Ra2 {[%clk 0:00:04]} 56. b3 {[%clk 0:00:19]}  Rb2 {[%clk 0:00:04]} 57. Rc3 {[%clk 0:00:19]}  Kg5 {[%clk 0:00:04]} 58. b5 {[%clk 0:00:19]}  Kf5 {[%clk 0:00:05]} 59. b6 {[%clk 0:00:20]}  Ke5 {[%clk 0:00:05]} 60. b7 {[%clk 0:00:20]}  Kd4 {[%clk 0:00:05]} 61. Rc4+ {[%clk 0:00:20]} 1-0


[Site "https://www.chess.com"]

[Event "Titled Tuesday Blitz June 27 Early 2023"]
[White "Kaidanov, Gregory"]
[Black "Baskakov, Egor"]
[WhiteFideId "2008564"]
[BlackFideId "24197866"]
[WhiteElo "2624"]
[BlackElo "2913"]
[Result "1-0"]
[Round "2"]
[TimeControl "180+2"]
[Date "2023.06.27"]
[WhiteClock "0:00:02"]
[BlackClock "0:00:07"]
[Board "31"]

1. d4 {[%clk 0:03:00]}  Nf6 {[%clk 0:02:59]} 2. c4 {[%clk 0:03:01]}  e6 {[%clk 0:03:00]} 3. Nc3 {[%clk 0:03:00]}  d5 {[%clk 0:03:01]} 4. Nf3 {[%clk 0:02:59]}  Ne4 {[%clk 0:03:01]} 5. e3 {[%clk 0:02:57]}  f5 {[%clk 0:03:00]} 6. Be2 {[%clk 0:02:56]}  c6 {[%clk 0:03:01]} 7. O-O {[%clk 0:02:56]}  Be7 {[%clk 0:03:01]} 8. Ne5 {[%clk 0:02:55]}  O-O {[%clk 0:03:01]} 9. f3 {[%clk 0:02:56]}  Nxc3 {[%clk 0:03:02]} 10. bxc3 {[%clk 0:02:57]}  Nd7 {[%clk 0:03:02]} 11. Nd3 {[%clk 0:02:53]}  dxc4 {[%clk 0:03:00]} 12. Nf4 {[%clk 0:02:52]}  Nb6 {[%clk 0:03:00]} 13. a4 {[%clk 0:02:51]}  Nd5 {[%clk 0:02:54]} 14. Bxc4 {[%clk 0:02:44]}  g5 {[%clk 0:02:43]} 15. Nd3 {[%clk 0:02:37]}  Nxc3 {[%clk 0:02:37]} 16. Qb3 {[%clk 0:02:36]}  Nd5 {[%clk 0:02:37]} 17. Bd2 {[%clk 0:02:33]}  Bf6 {[%clk 0:02:32]} 18. Kh1 {[%clk 0:02:31]}  Qe8 {[%clk 0:02:21]} 19. e4 {[%clk 0:02:20]}  Nb6 {[%clk 0:02:20]} 20. e5 {[%clk 0:02:17]}  Nxc4 {[%clk 0:02:18]} 21. Qxc4 {[%clk 0:02:18]}  Be7 {[%clk 0:02:16]} 22. Bb4 {[%clk 0:02:09]}  b6 {[%clk 0:02:14]} 23. a5 {[%clk 0:02:00]}  Bxb4 {[%clk 0:02:00]} 24. Qxb4 {[%clk 0:01:58]}  Ba6 {[%clk 0:01:59]} 25. Rfd1 {[%clk 0:01:53]}  Bxd3 {[%clk 0:01:59]} 26. Rxd3 {[%clk 0:01:53]}  Qd7 {[%clk 0:01:57]} 27. Qd2 {[%clk 0:01:39]}  h6 {[%clk 0:01:54]} 28. Rc1 {[%clk 0:01:35]}  Rad8 {[%clk 0:01:48]} 29. h3 {[%clk 0:01:18]}  c5 {[%clk 0:01:40]} 30. Rd1 {[%clk 0:01:17]}  c4 {[%clk 0:01:32]} 31. Ra3 {[%clk 0:01:10]}  b5 {[%clk 0:01:33]} 32. a6 {[%clk 0:01:08]}  Qe7 {[%clk 0:01:28]} 33. Rda1 {[%clk 0:00:55]}  Rd5 {[%clk 0:01:22]} 34. Qb2 {[%clk 0:00:37]}  b4 {[%clk 0:01:14]} 35. Ra4 {[%clk 0:00:37]}  Rb8 {[%clk 0:01:14]} 36. Rc1 {[%clk 0:00:34]}  c3 {[%clk 0:00:51]} 37. Rxc3 {[%clk 0:00:34]}  Rxd4 {[%clk 0:00:52]} 38. Rc8+ {[%clk 0:00:25]}  Rxc8 {[%clk 0:00:46]} 39. Qxd4 {[%clk 0:00:25]}  b3 {[%clk 0:00:44]} 40. Rb4 {[%clk 0:00:23]}  Rd8 {[%clk 0:00:31]} 41. Qc3 {[%clk 0:00:19]}  g4 {[%clk 0:00:23]} 42. fxg4 {[%clk 0:00:17]}  fxg4 {[%clk 0:00:09]} 43. Rxg4+ {[%clk 0:00:17]}  Kh8 {[%clk 0:00:09]} 44. Qxb3 {[%clk 0:00:16]}  Rf8 {[%clk 0:00:07]} 45. Qe3 {[%clk 0:00:15]}  Qh7 {[%clk 0:00:03]} 46. Rh4 {[%clk 0:00:15]}  Kg7 {[%clk 0:00:04]} 47. Qxa7+ {[%clk 0:00:13]}  Rf7 {[%clk 0:00:03]} 48. Qe3 {[%clk 0:00:13]}  h5 {[%clk 0:00:03]} 49. Ra4 {[%clk 0:00:10]}  Qg6 {[%clk 0:00:01]} 50. a7 {[%clk 0:00:08]}  Rf1+ {[%clk 0:00:02]} 51. Kh2 {[%clk 0:00:08]}  Qb1 {[%clk 0:00:03]} 52. a8=Q {[%clk 0:00:05]}  Rh1+ {[%clk 0:00:03]} 53. Kg3 {[%clk 0:00:04]}  Qg6+ {[%clk 0:00:04]} 54. Kf2 {[%clk 0:00:04]}  Rb1 {[%clk 0:00:03]} 55. Qaa7+ {[%clk 0:00:03]}  Kg8 {[%clk 0:00:04]} 56. Qa8+ {[%clk 0:00:02]}  Kh7 {[%clk 0:00:04]} 57. Ra7+ {[%clk 0:00:03]}  Qg7 {[%clk 0:00:05]} 58. Rxg7+ {[%clk 0:00:02]}  Kxg7 {[%clk 0:00:06]} 59. Qg5+ {[%clk 0:00:02]}  Kf7 {[%clk 0:00:07]} 60. Qa7+ {[%clk 0:00:02]}  Ke8 {[%clk 0:00:07]} 61. Qge7# {[%clk 0:00:02]} 1-0


[Site "https://www.chess.com"]